fUST/lending_fUST_20241012
["ID","MTS","AMOUNT","RATE_DAILY","PERIOD"]
[340166817,1728737346002,-500.0,0.00040135,31]
[340166818,1728737346022,-500.0,0.00040135,31]
[340166819,1728737346047,-171.26233443,0.00040135,31]
[340166820,1728737346476,-500.0,0.00040135,31]
[340166821,1728737346498,-368.95254272,0.00040135,31]
[340166822,1728737346522,-500.0,0.00040135,31]
[340166823,1728737346544,-500.0,0.00040135,31]
[340166824,1728737346565,-500.0,0.00040135,31]
[340166825,1728737346588,-500.0,0.00040135,31]
[340166826,1728737346610,-500.0,0.00040135,31]
[340166827,1728737346630,-500.0,0.00040135,31]
[340166828,1728737346650,-501.51616382,0.00040135,31]
[340166829,1728737346670,-173.55563407,0.00040135,31]
[340166830,1728737346691,-372.5,0.00040135,31]
[340166831,1728737346711,-500.0,0.00040135,31]
[340166832,1728737346733,-500.0,0.00040135,31]
[340166833,1728737346752,-500.0,0.00040135,31]
[340166834,1728737346774,-500.0,0.00040135,31]
[340166835,1728737346798,-500.0,0.00040135,31]
[340166836,1728737346819,-500.0,0.00040135,31]
[340166837,1728737346845,-500.0,0.00040135,31]
[340166838,1728737346868,-500.0,0.00040135,31]
[340166839,1728737346899,-4695.55065193,0.00040137,28]
[340166840,1728737346921,-200.985,0.00040237,57]
[340166841,1728737346945,-279.645167,0.00040328,2]
[340166842,1728737346967,-1000.0,0.00040547,2]
[340166843,1728737346987,-1000.0,0.00040547,2]
[340166844,1728737347007,-1000.0,0.00040547,2]
[340166845,1728737347030,-1000.0,0.00040547,2]
[340166846,1728737347050,-1000.0,0.00040547,2]
[340166847,1728737347069,-1000.0,0.00040547,2]
[340166848,1728737347090,-1000.0,0.00040547,2]
[340166849,1728737347110,-1000.0,0.00040547,2]
[340166850,1728737347131,-1000.0,0.00040547,2]
[340166851,1728737347150,-1000.0,0.00040547,2]
[340166852,1728737347170,-1000.0,0.00040547,2]
[340166853,1728737347189,-1000.0,0.00040547,2]
[340166854,1728737347209,-1000.0,0.00040547,2]
[340166855,1728737347229,-1000.0,0.00040547,2]
[340166856,1728737347252,-1000.0,0.00040547,2]
[340166857,1728737347273,-1000.0,0.00040547,2]
[340166858,1728737347296,-1000.0,0.00040547,2]
[340166859,1728737347319,-1000.0,0.00040547,2]
[340166860,1728737347347,-500.0,0.00040547,2]
[340166861,1728737347368,-11403.1509869,0.00040669,2]
[340166862,1728737347391,-301.42235629,0.00041496,30]
[340166863,1728737347413,-783.0,0.00041539,5]
[340166864,1728737347436,-500.0,0.000421,2]
[340166865,1728737347459,-267.0,0.00042225,2]
[340166866,1728737347481,-1002.00189761,0.0004347,2]
[340166867,1728737347504,-783.0,0.0004383,30]
[340166868,1728737347527,-691.82,0.00044329,30]
[340166869,1728737347550,-4695.5506519,0.00044339,28]
[340166870,1728737347573,-525.45217134,0.00046037,2]
[340166871,1728737347596,-161.0,0.00046849,90]
[340166872,1728737347620,-161.0,0.00047,90]
[340166873,1728737347643,-2083.16,0.0004712,10]
[340166874,1728737347666,-1735.97,0.0004712,10]
[340166875,1728737347691,-2499.79,0.0004713,10]
[340166876,1728737347714,-153.35148034,0.00047139,120]
[340166877,1728737347738,-100414.807034,0.0004714,7]
[340166878,1728737347762,-18651.65436065,0.0004714,7]
[340166879,1728737351146,-1097.0,0.00044483,5]
[340166880,1728737353862,500.83348103,0.00041864,7]
[340166881,1728737357115,-576.51,0.0004711,30]
[340166882,1728737357140,-62060.41688732,0.0004714,7]
[340166883,1728737363129,-480.43,0.0004713,30]
[340166884,1728737363151,-1446.64,0.0004713,10]
[340166885,1728737363174,-31048.09715815,0.0004714,7]
[340166886,1728737363204,-47072.44667288,0.0004714,7]
[340166887,1728737363225,-1000.0,0.00047189,7]
[340166888,1728737363246,-13304.16904375,0.000472,120]
[340166889,1728737363268,-11810.35338933,0.000472,120]
[340166890,1728737372246,-1493.8156544,0.000472,120]
[340166891,1728737372271,-525.4521713,0.00047363,2]
[340166892,1728737372293,-520.0,0.00047635,5]
[340166893,1728737372315,-230.0,0.00048213,30]
[340166894,1728737372337,-4695.5506519,0.00048541,28]
[340166895,1728737372359,-1008.35634105,0.00048559,7]
[340166896,1728737372381,-525.4521713,0.00048689,2]
[340166897,1728737372402,-161.0,0.00048904,90]
[340166898,1728737373317,-768.06520831,0.0004998,10]
[340166927,1728737439439,-311.23861294,0.0004998,30]
[340166928,1728737439453,-89.12138706,0.0004998,30]
[340166929,1728737439464,-333.63,0.0004998,30]
[340166930,1728737439474,-278.02,0.0004998,30]
[340166931,1728737439485,-231.69,0.0004998,30]
[340166932,1728737439495,-697.65,0.0004998,10]
[340166933,1728737439506,-193.07,0.0004998,30]
[340166934,1728737439515,-961.24,0.0004998,10]
[340166935,1728737439525,-160.89,0.0004998,30]
[340166936,1728737439534,-801.04,0.0004998,10]
[340166937,1728737439555,-804.5,0.0004998,30]
[340166938,1728737439565,-667.53,0.0004998,10]
[340166939,1728737439575,-352.3624816,0.00049989,120]
[340166940,1728737439587,-152.5,0.00049989,120]
[340166941,1728737439597,-519.28395934,0.00049989,120]
[340166942,1728737439609,-100414.807034,0.0004999,7]
[340166943,1728737439621,-158832.615079,0.0004999,7]
[340166944,1728737439633,-200.94823753,0.0004999,60]
[340166945,1728737439644,-11709.7513083,0.0005,120]
[340166946,1728737439657,-40013.0,0.0005,120]
[340166947,1728737439673,-525.4521713,0.00050015,2]
[340166948,1728737439684,-525.4521713,0.00051341,2]
[340166949,1728737439696,-165.0,0.00051349,120]
[340166950,1728737439706,-1868.35487949,0.00051441,2]
[340166951,1728737439717,-200829.614067,0.00051441,8]
[340166952,1728737439729,-317665.230157,0.00051441,8]
[340166953,1728737439740,-88888.0,0.00051451,120]
[340166954,1728737439751,-50930.44323238,0.00051561,51]
[340166955,1728737439760,-153.0,0.00051799,120]
[340166956,1728737439769,-153.0,0.00051799,120]
[340166957,1728737439778,-153.0,0.00051799,120]
[340166958,1728737439787,-153.0,0.00051799,120]
[340166959,1728737439797,-153.0,0.00051827,120]
[340166960,1728737439807,-153.0,0.00051827,120]
[340166961,1728737439818,-153.0,0.00051827,120]
[340166962,1728737439829,-153.0,0.00051827,120]
[340166963,1728737439839,-153.0,0.00051827,120]
[340166964,1728737439850,-153.0,0.00051827,120]
[340166965,1728737439861,-153.0,0.00051827,120]
[340166966,1728737439871,-153.0,0.00051827,120]
[340166967,1728737439882,-500.0,0.00052054,30]
[340166968,1728737439893,-6670.78677897,0.00052348,2]
[340166969,1728737439906,-12182.01705573,0.00052666,120]
[340166975,1728737440669,-1122.151988,0.00052666,120]
[340166976,1728737440681,-4695.5506519,0.00052743,28]
[340166977,1728737440693,-6670.78677897,0.0005277,2]
[340166978,1728737440702,-600.0,0.000528,2]
[340166979,1728737440712,-1000.0,0.00052974,120]
[340166980,1728737440725,-6670.78677897,0.00053107,2]
[340166981,1728737440736,-272.82532284,0.00053204,2]
[340166982,1728737440745,-600.0,0.0005335,2]
[340166983,1728737440755,-155.48,0.000534,51]
[340166984,1728737440769,-5000.0,0.00053424,120]
[340166985,1728737440779,-5000.0,0.00053424,120]
[340166986,1728737440789,-2351.8921934,0.00053424,120]
[340166987,1728737440798,-150.0,0.0005343,2]
[340166988,1728737440809,-6670.78677897,0.00053514,2]
[340166989,1728737440818,-153.0,0.00053836,30]
[340166990,1728737440828,-153.0,0.00053836,30]
[340166991,1728737440837,-153.0,0.00053836,30]
[340166992,1728737440847,-153.0,0.00053836,30]
[340166993,1728737440857,-153.0,0.00053836,30]
[340166994,1728737440867,-195.6635752,0.00053836,30]
[340166995,1728737440876,-153.0,0.00053836,30]
[340166996,1728737440886,-600.0,0.000539,2]
[340166997,1728737440898,-6670.78677897,0.00053934,2]
[340166998,1728737440909,-156.8796274,0.00053973,30]
[340166999,1728737440919,-210.0488919,0.00053973,30]
[340167000,1728737440929,-413.7492508,0.00053973,30]
[340167001,1728737440940,-317.3629164,0.00053973,30]
[340167002,1728737440950,-210.0488919,0.00053973,30]
[340167003,1728737440960,-413.7492508,0.00053973,30]
[340167004,1728737440973,-301.5202838,0.00053973,30]
[340167005,1728737440985,-210.0488919,0.00053973,30]
[340167006,1728737440997,-153.0,0.00053973,30]
[340167007,1728737441007,-413.7492508,0.00053973,30]
[340167008,1728737441018,-413.7492508,0.00053973,30]
[340167009,1728737441029,-301.5202838,0.00053973,30]
[340167010,1728737441039,-210.0488919,0.00053973,30]
[340167011,1728737441049,-153.0,0.00053973,30]
[340167012,1728737441059,-413.7492508,0.00053973,30]
[340167013,1728737441069,-210.0488919,0.00053973,30]
[340167014,1728737441079,-793.919532,0.00053973,30]
[340167015,1728737441090,-150.7601419,0.00053973,30]
[340167016,1728737441101,-210.0488919,0.00053973,30]
[340167017,1728737441111,-210.0488919,0.00053973,30]
[340167018,1728737441122,-308.3117526,0.00053973,30]
[340167019,1728737441134,-153.0,0.00053973,30]
[340167020,1728737441144,-210.0488919,0.00053973,30]
[340167021,1728737441155,-210.0488919,0.00053973,30]
[340167022,1728737441164,-153.0,0.00053973,30]
[340167023,1728737441174,-113276.86478,0.00053999,30]
[340167024,1728737441184,-1000.0,0.00054,120]
[340167025,1728737441194,-107219.57100642,0.00054,120]
[340167026,1728737441203,-92267.74016484,0.00054,120]
[340167027,1728737441217,-6670.78677897,0.00054077,2]
[340167028,1728737441226,-153.0,0.00054247,30]
[340167029,1728737441236,-153.0,0.00054247,30]
[340167030,1728737441247,-153.0,0.00054247,30]
[340167031,1728737441258,-153.0,0.00054247,30]
[340167032,1728737441269,-153.0,0.00054247,30]
[340167033,1728737441279,-155.2226222,0.00054247,30]
[340167034,1728737441290,-153.0,0.00054247,30]
[340167035,1728737441301,-849.748534,0.0005445,2]
[340167036,1728737441311,-500.0,0.00054498,10]
[340167037,1728737441322,-1250.0,0.00054794,120]
[340167038,1728737441333,-1250.0,0.00054794,120]
[340167039,1728737441344,-500.0,0.00054794,120]
[340167040,1728737441354,-500.0,0.00054794,120]
[340167041,1728737441365,-339.69597298,0.00054794,10]
[340167042,1728737441375,-500.0,0.00054794,120]
[340167043,1728737441385,-500.0,0.00054794,120]
[340167044,1728737441396,-307.71548,0.00054794,120]
[340167045,1728737441406,-260.67972385,0.00054794,120]
[340167046,1728737441416,-500.0,0.00054794,120]
[340167047,1728737441427,-500.0,0.00054794,120]
[340167048,1728737441438,-500.0,0.00054794,120]
[340167049,1728737441449,-500.0,0.00054794,120]
[340167050,1728737441458,-500.0,0.00054794,2]
[340167051,1728737441471,-500.0,0.00054794,120]
[340167052,1728737441483,-500.0,0.00054794,120]
[340167053,1728737441495,-564.43,0.00054794,120]
[340167054,1728737441507,-500.0,0.00054794,120]
[340167055,1728737441519,-500.0,0.00054794,120]
[340167056,1728737441531,-500.0,0.00054794,120]
[340167057,1728737441542,-500.0,0.00054794,120]
[340167058,1728737441553,-1219.23,0.00054794,120]
[340167059,1728737441564,-500.0,0.00054794,120]
[340167060,1728737441576,-309.53549563,0.00054794,120]
[340167061,1728737441589,-500.0,0.00054794,120]
[340167062,1728737441599,-500.0,0.00054794,120]
[340167063,1728737441611,-1000.0,0.00054794,120]
[340167064,1728737441624,-500.0,0.00054794,120]
[340167065,1728737441635,-500.0,0.00054794,120]
[340167066,1728737441646,-500.0,0.00054794,120]
[340167067,1728737441658,-500.0,0.00054794,120]
[340167068,1728737441670,-500.0,0.00054794,120]
[340167069,1728737441681,-500.0,0.00054794,120]
[340167070,1728737441693,-500.0,0.00054794,120]
[340167071,1728737441704,-500.0,0.00054794,120]
[340167072,1728737441715,-500.0,0.00054794,120]
[340167073,1728737441727,-500.0,0.00054794,120]
[340167074,1728737441738,-211.48509545,0.00054794,120]
[340167075,1728737441750,-3333.33,0.00054794,120]
[340167076,1728737441762,-500.0,0.00054794,18]
[340167077,1728737441774,-500.0,0.00054794,120]
[340167078,1728737441785,-791.06,0.00054794,120]
[340167079,1728737441795,-322.2260948,0.00054795,120]
[340167080,1728737441805,-209.9542747,0.00054795,120]
[340167081,1728737441815,-325.5502116,0.00054795,120]
[340167082,1728737441825,-500.0,0.00054795,120]
[340167083,1728737441835,-500.0,0.00054795,120]
[340167084,1728737441847,-500.0,0.00054795,120]
[340167085,1728737441856,-500.0,0.00054795,120]
[340167086,1728737441865,-538.69632296,0.00054795,120]
[340167087,1728737441875,-500.0,0.00054795,120]
[340167088,1728737441886,-500.0,0.00054795,120]
[340167089,1728737441899,-500.0,0.00054795,120]
[340167090,1728737441913,-500.0,0.00054795,120]
[340167091,1728737441924,-500.0,0.00054795,120]
[340167092,1728737441935,-198.89016936,0.000549,120]
[340167093,1728737441944,-222.81,0.00055,120]
[340167094,1728737441955,-17008.0,0.00055,60]
[340167095,1728737441966,-500.0,0.00055068,120]
[340167096,1728737441975,-500.0,0.00055068,120]
[340167097,1728737441988,-500.0,0.00055068,120]
[340167098,1728737442000,-500.0,0.00055068,120]
[340167099,1728737442010,-500.0,0.00055068,120]
[340167100,1728737442021,-500.0,0.00055068,120]
[340167101,1728737442033,-500.0,0.00055068,120]
[340167102,1728737442044,-500.0,0.00055068,120]
[340167103,1728737442054,-500.0,0.00055068,120]
[340167104,1728737442064,-500.0,0.00055068,120]
[340167105,1728737442075,-564.43,0.00055068,120]
[340167106,1728737442085,-500.0,0.00055068,120]
[340167107,1728737442094,-500.0,0.00055068,120]
[340167108,1728737442105,-1219.23,0.00055068,120]
[340167109,1728737442115,-173.51678003,0.00055068,120]
[340167110,1728737442124,-500.0,0.00055068,120]
[340167111,1728737442134,-500.0,0.00055068,120]
[340167112,1728737442145,-1000.0,0.00055068,120]
[340167113,1728737442155,-500.0,0.00055068,120]
[340167114,1728737442249,-500.0,0.00055068,120]
[340167115,1728737442262,-500.0,0.00055068,120]
[340167116,1728737442273,-500.0,0.00055068,120]
[340167117,1728737442283,-500.0,0.00055068,120]
[340167118,1728737442296,-500.0,0.00055068,120]
[340167119,1728737442308,-500.0,0.00055068,120]
[340167120,1728737442318,-500.0,0.00055068,120]
[340167121,1728737442329,-3333.33,0.00055068,120]
[340167122,1728737442340,-500.0,0.00055068,18]
[340167123,1728737442349,-500.0,0.00055068,120]
[340167124,1728737442359,-791.06,0.00055068,120]
[340167125,1728737442368,-500.0,0.00055342,120]
[340167126,1728737442378,-452.47435805,0.00055342,120]
[340167127,1728737442388,-500.0,0.00055342,120]
[340167128,1728737442398,-546.1265893,0.00055342,120]
[340167129,1728737442408,-500.0,0.00055342,120]
[340167130,1728737442418,-500.0,0.00055342,120]
[340167131,1728737442428,-500.0,0.00055342,120]
[340167132,1728737442438,-500.0,0.00055342,120]
[340167133,1728737442450,-500.0,0.00055342,120]
[340167134,1728737442462,-564.43,0.00055342,120]
[340167135,1728737442472,-500.0,0.00055342,120]
[340167136,1728737442484,-500.0,0.00055342,120]
[340167137,1728737442495,-1219.23,0.00055342,120]
[340167138,1728737442505,-436.49891444,0.00055342,120]
[340167139,1728737442516,-1000.0,0.00055342,120]
[340167140,1728737442527,-500.0,0.00055342,120]
[340167141,1728737442538,-500.0,0.00055342,120]
[340167142,1728737442548,-500.00805641,0.00055342,120]
[340167143,1728737442558,-500.0,0.00055342,120]
[340167144,1728737442569,-500.0,0.00055342,120]
[340167145,1728737442580,-500.0,0.00055342,120]
[340167146,1728737442591,-500.0,0.00055342,120]
[340167147,1728737442603,-3333.33,0.00055342,120]
[340167148,1728737442613,-500.0,0.00055342,18]
[340167149,1728737442623,-500.0,0.00055342,120]
[340167150,1728737442633,-791.06,0.00055342,120]
[340167151,1728737442643,-200.0,0.00055342,2]
[340167152,1728737442653,-380.0,0.00055342,2]
[340167153,1728737442663,-500.0,0.00055616,120]
[340167154,1728737442673,-500.0,0.00055616,120]
[340167155,1728737442682,-500.0,0.00055616,120]
[340167156,1728737442692,-605.37138429,0.00055616,120]
[340167157,1728737442701,-517.21902393,0.00055616,120]
[340167158,1728737442711,-500.0,0.00055616,120]
[340167159,1728737442721,-564.43,0.00055616,120]
[340167160,1728737442731,-151.0,0.00055616,120]
[340167161,1728737442740,-500.0,0.00055616,120]
[340167162,1728737442750,-1219.23,0.00055616,120]
[340167163,1728737442759,-500.0,0.00055616,120]
[340167164,1728737442770,-500.0,0.00055616,120]
[340167165,1728737442781,-500.0,0.00055616,120]
[340167166,1728737442793,-500.0,0.00055616,120]
[340167167,1728737442804,-3333.33,0.00055616,120]
[340167168,1728737442814,-500.0,0.00055616,18]
[340167169,1728737442825,-500.0,0.00055616,120]
[340167170,1728737442835,-791.06,0.00055616,120]
[340167171,1728737442846,-269.08194861,0.000558,30]
[340167172,1728737442857,-1002.13979962,0.00055868,15]
[340167173,1728737442867,-500.0,0.0005589,120]
[340167174,1728737442878,-500.0,0.0005589,120]
[340167175,1728737442888,-500.0,0.0005589,120]
[340167176,1728737442899,-500.0,0.0005589,120]
[340167177,1728737442921,-564.43,0.0005589,120]
[340167178,1728737442932,-500.0,0.0005589,120]
[340167179,1728737442942,-1219.23,0.0005589,120]
[340167180,1728737442952,-500.0,0.0005589,120]
[340167181,1728737442963,-500.0,0.0005589,120]
[340167182,1728737442974,-500.0,0.0005589,120]
[340167183,1728737442985,-500.0,0.0005589,120]
[340167184,1728737442996,-3333.33,0.0005589,120]
[340167185,1728737443007,-500.0,0.0005589,18]
[340167186,1728737443017,-203.70202113,0.0005589,120]
[340167187,1728737443027,-791.06,0.0005589,120]
[340167188,1728737443037,-2500.0,0.00056164,120]
[340167189,1728737443046,-500.0,0.00056164,120]
[340167190,1728737443056,-500.0,0.00056164,120]
[340167191,1728737443066,-500.0,0.00056164,120]
[340167192,1728737443075,-500.0,0.00056164,120]
[340167193,1728737443087,-564.43,0.00056164,120]
[340167194,1728737443097,-500.0,0.00056164,120]
[340167195,1728737443107,-1219.23,0.00056164,120]
[340167196,1728737443116,-500.0,0.00056164,120]
[340167197,1728737443126,-500.0,0.00056164,120]
[340167198,1728737443136,-500.0,0.00056164,120]
[340167199,1728737443146,-500.0,0.00056164,120]
[340167200,1728737443156,-3333.33,0.00056164,120]
[340167202,1728737443166,-500.0,0.00056164,18]
[340167203,1728737443177,-791.06,0.00056164,120]
[340167204,1728737443187,-155.48,0.000562,57]
[340167205,1728737443198,-155.48,0.000562,57]
[340167206,1728737443209,-500.0,0.00056438,120]
[340167208,1728737443220,-500.0,0.00056438,120]
[340167209,1728737443229,-500.0,0.00056438,120]
[340167210,1728737443241,-500.0,0.00056438,120]
[340167212,1728737443251,-564.43,0.00056438,120]
[340167215,1728737443261,-500.0,0.00056438,120]
[340167216,1728737443270,-1219.23,0.00056438,120]
[340167218,1728737443282,-500.0,0.00056438,120]
[340167220,1728737443295,-500.0,0.00056438,120]
[340167222,1728737443308,-500.0,0.00056438,120]
[340167224,1728737443320,-500.0,0.00056438,120]
[340167225,1728737443333,-3333.33,0.00056438,120]
[340167227,1728737443346,-500.0,0.00056438,18]
[340167228,1728737443357,-791.06,0.00056438,120]
[340167229,1728737443368,-161.0,0.00056484,120]
[340167230,1728737443380,-1114.12,0.000565,30]
[340167231,1728737443393,-150.112233,0.000566,10]
[340167232,1728737443405,-500.0,0.00056712,120]
[340167233,1728737443427,-500.0,0.00056712,120]
[340167234,1728737443438,-500.0,0.00056712,120]
[340167235,1728737443451,-500.0,0.00056712,120]
[340167236,1728737443464,-564.43,0.00056712,120]
[340167237,1728737443476,-500.0,0.00056712,120]
[340167238,1728737443487,-1219.23,0.00056712,120]
[340167239,1728737443499,-500.0,0.00056712,120]
[340167240,1728737443512,-500.0,0.00056712,120]
[340167241,1728737443526,-500.2419537,0.00056712,120]
[340167242,1728737443538,-500.0,0.00056712,120]
[340167243,1728737443550,-500.0,0.00056712,18]
[340167244,1728737443561,-3333.33,0.00056712,120]
[340167245,1728737443575,-791.06,0.00056712,120]
[340167246,1728737443589,-398.91,0.000568,30]
[340167247,1728737443600,-4695.5506519,0.00056944,28]
[340167248,1728737443612,-500.0,0.00056986,120]
[340167249,1728737443624,-500.0,0.00056986,120]
[340167250,1728737443636,-363.4,0.00056986,120]
[340167251,1728737443650,-500.0,0.00056986,120]
[340167252,1728737443662,-564.43,0.00056986,120]
[340167253,1728737443676,-574.910742,0.00056986,120]
[340167254,1728737443687,-1219.23,0.00056986,120]
[340167255,1728737443699,-500.0,0.00056986,120]
[340167256,1728737443712,-500.0,0.00056986,120]
[340167257,1728737443725,-500.0,0.00056986,120]
[340167258,1728737443737,-489.11539481,0.00056986,18]
[340167259,1728737443749,-3333.33,0.00056986,120]
[340167260,1728737443761,-791.06,0.00056986,120]
[340167261,1728737443773,-205.716059,0.00056997,30]
[340167262,1728737443783,-163.660006,0.00056997,30]
[340167263,1728737443795,-500.0,0.0005726,120]
[340167264,1728737443806,-221.15923029,0.0005726,120]
[340167265,1728737443816,-500.0,0.0005726,120]
[340167266,1728737443828,-564.43,0.0005726,120]
[340167267,1728737443840,-1219.23,0.0005726,120]
[340167268,1728737443852,-500.0,0.0005726,120]
[340167269,1728737443864,-500.0,0.0005726,120]
[340167270,1728737443875,-504.12419494,0.0005726,120]
[340167271,1728737443887,-3333.33,0.0005726,120]
[340167272,1728737443897,-791.06,0.0005726,120]
[340167273,1728737443911,-800.0,0.00057509,120]
[340167274,1728737443920,-637.738407,0.00057534,120]
[340167275,1728737443930,-500.0,0.00057534,120]
[340167276,1728737443940,-564.43,0.00057534,120]
[340167277,1728737443951,-1219.23,0.00057534,120]
[340167278,1728737443962,-587.34255278,0.00057534,120]
[340167279,1728737443975,-500.0,0.00057534,120]
[340167281,1728737443988,-3333.33,0.00057534,120]
[340167283,1728737444000,-791.06,0.00057534,120]
[340167284,1728737444011,-200.986,0.00057678,113]
[340167285,1728737444021,-280.69847979,0.00057808,120]
[340167286,1728737444031,-564.43,0.00057808,120]
[340167287,1728737444044,-1219.23,0.00057808,120]
[340167288,1728737444054,-500.0,0.00057808,120]
[340167289,1728737444065,-3333.33,0.00057808,120]
[340167290,1728737444076,-791.06,0.00057808,120]
[340167291,1728737444087,-1000.0,0.00058,120]
[340167292,1728737444097,-564.43,0.00058082,120]
[340167293,1728737444107,-1219.23,0.00058082,120]
[340167294,1728737444117,-500.0,0.00058082,120]
[340167295,1728737444127,-3333.33,0.00058082,120]
[340167296,1728737444137,-791.06,0.00058082,120]
[340167297,1728737444148,-564.43,0.00058356,120]
[340167298,1728737444159,-1219.23,0.00058356,120]
[340167299,1728737444170,-499.002,0.00058356,120]
[340167300,1728737444181,-3333.33,0.00058356,120]
[340167301,1728737444192,-791.06,0.00058356,120]
[340167302,1728737444202,-564.43,0.0005863,120]
[340167303,1728737444213,-1219.23,0.0005863,120]
[340167304,1728737444224,-3333.33,0.0005863,120]
[340167305,1728737444235,-791.06,0.0005863,120]
[340167306,1728737444246,-151.0,0.0005863,120]
[340167307,1728737444257,-161.0,0.00058685,120]
[340167308,1728737444268,-351.57,0.000588,2]
[340167309,1728737444279,-564.43,0.00058904,120]
[340167310,1728737444291,-1219.23,0.00058904,120]
[340167311,1728737444301,-3333.33,0.00058904,120]
[340167312,1728737444312,-791.06,0.00058904,120]
[340167313,1728737444323,-500.0,0.00058937,15]
[340167314,1728737444334,-1000.0,0.00059,2]
[340167315,1728737444346,-155.48,0.00059,60]
[340167316,1728737444357,-155.48,0.00059,60]
[340167317,1728737444369,-564.43,0.00059178,120]
[340167318,1728737444380,-1219.23,0.00059178,120]
[340167319,1728737444391,-3333.33,0.00059178,120]
[340167320,1728737444500,-791.06,0.00059178,120]
[340167321,1728737444512,-152.833089,0.00059202,120]
[340167322,1728737444522,-151.0,0.00059202,30]
[340167323,1728737444533,-16920.03557509,0.00059202,120]
[340167324,1728737444543,-564.43,0.00059452,120]
[340167325,1728737444553,-1219.23,0.00059452,120]
[340167326,1728737444563,-3333.33,0.00059452,120]
[340167327,1728737444574,-791.06,0.00059452,120]
[340167328,1728737444585,-380.0,0.0005964,2]
[340167329,1728737444595,-564.43,0.00059726,120]
[340167330,1728737444607,-1219.23,0.00059726,120]
[340167331,1728737444619,-3333.33,0.00059726,120]
[340167332,1728737444631,-791.06,0.00059726,120]
[340167333,1728737444642,-150.0,0.00059732,120]
[340167334,1728737444653,-526.0,0.00059732,120]
[340167335,1728737444666,-1224.0,0.00059732,120]
[340167336,1728737444677,-206742.91290815,0.0005975,120]
[340167337,1728737444739,-49.63958842,0.00053973,30]
[340167348,1728737446659,-34.02952878,0.00053973,30]
[340167349,1728737447006,161.0,0.00047,90]
[340167350,1728737494595,279.6451672,0.00048871,2]
[340167351,1728737545426,162.0,0.000297,2]
[340167352,1728737546443,716.5142,0.0003783,30]
[340167361,1728737850749,500.0,0.00027,30]
[340167362,1728737851094,500.0,0.00027,30]
[340167363,1728737902326,951.30648258,0.0003,2]
[340167364,1728737903026,-12841.0,0.0003,2]
[340167366,1728738030011,166.935815,0.00028183,2]
[340167368,1728738125014,197.3695189,0.00028369,2]
[340167369,1728738146494,500.0,0.00027,30]
[340167371,1728738266276,165.504463,0.00028671,2]
[340167372,1728738266494,165.504463,0.00028795,2]
[340167373,1728738266709,165.504463,0.0002892,2]
[340167374,1728738269368,-165.504463,0.00029044,2]
[340167375,1728738269394,-165.504463,0.00029169,2]
[340167376,1728738269420,-165.504463,0.00029293,2]
[340167377,1728738269447,-165.504463,0.00029418,2]
[340167378,1728738269473,-165.504463,0.00029542,2]
[340167379,1728738269498,-165.504463,0.00029667,2]
[340167380,1728738269523,-165.504463,0.00029791,2]
[340167381,1728738269552,-3691.12893408,0.000299,2]
[340167382,1728738269579,-165.504463,0.00029916,2]